bitfinex/quotes_SOLUSD_20241118
["timestamp","ask_amount","ask_price","bid_price","bid_amount"]
[1731950164116,1.0,240.87,240.71,31.9306]
[1731950164636,28.179564,240.86,240.71,31.9306]
[1731950165630,0.5,240.83,240.65,42.5084]
[1731950165923,36.923664,240.82,240.65,42.5084]
[1731950166334,0.5,240.8,240.65,42.5084]
[1731950166523,30.0,240.74,240.65,12.2897]
[1731950167028,24.027864,240.73,240.59,12.1364]
[1731950167619,30.0,240.71,240.59,12.1364]
[1731950169725,30.0,240.71,240.6,20.0]
[1731950169931,30.0,240.71,240.61,0.12549]
[1731950170131,30.0,240.71,240.61,24.027864]
[1731950170312,30.0,240.71,240.62,20.0]
[1731950171212,30.0,240.71,240.6,20.0]
[1731950171408,4.1526,240.81,240.6,20.0]
[1731950171739,24.027864,240.8,240.6,20.0]
[1731950172203,0.25098,240.78,240.6,20.0]
[1731950172403,24.027864,240.78,240.6,20.0]
[1731950173434,30.0,240.7,240.59,12.1364]
[1731950175113,27.18884731,240.7,240.59,12.1364]
[1731950175732,27.18884731,240.7,240.6,20.0]
[1731950179245,36.1391,240.84,240.62,20.0]
[1731950179410,158.4,240.86,240.63,0.21916462]
[1731950179740,31.8522,240.9,240.67,44.027864]
[1731950179934,31.8522,240.9,240.66,13.0191]
[1731950179935,0.5,240.85,240.69,20.0]
[1731950180144,0.09367462,240.84,240.69,20.0]
[1731950181014,23.99604862,240.84,240.69,20.0]
[1731950182434,0.09367462,240.84,240.69,20.0]
[1731950184323,23.87055862,240.84,240.69,20.0]
[1731950184521,0.25098,240.83,240.69,20.0]
[1731950186813,17.09501383,240.93,240.69,20.0]
[1731950187014,16.0887,240.93,240.71,20.0]
[1731950187437,11.9381,240.93,240.73,20.0]
[1731950188017,0.09367462,240.92,240.73,20.0]
[1731950188435,11.9381,240.93,240.73,20.0]
[1731950188637,4.15,240.97,240.76,23.99604862]
[1731950188938,4.15,240.97,240.79,20.0]
[1731950189134,4.1497,240.99,240.79,20.0]
[1731950189516,5.1497,240.99,240.79,20.0]
[1731950189929,0.09367462,240.97,240.79,20.0]
[1731950190133,162.5495,241.0,240.79,20.0]
[1731950190525,4.1487,241.04,240.81,32.34]
[1731950190722,4.1487,241.04,240.82,0.09367462]
[1731950190944,158.4,241.05,240.83,20.0]
[1731950191240,158.4,241.05,240.85,20.0]
[1731950191440,48.7464,241.09,240.87,20.0]
[1731950192422,49.2464,241.09,240.87,20.0]
[1731950192829,0.09367462,241.08,240.87,20.0]
[1731950193032,0.12549,241.07,240.87,20.0]
[1731950193550,4.39908,241.07,240.87,20.0]
[1731950193945,23.776884,241.06,240.87,20.0]
[1731950194115,0.25098,241.05,240.87,20.0]
[1731950194728,23.776884,241.04,240.85,20.0]
[1731950195054,0.75098,241.05,240.86,0.09367462]
[1731950195055,0.12549,241.05,240.86,0.09367462]
[1731950195347,0.09367462,241.04,240.85,36.073574]
[1731950195929,4.648,241.08,240.85,36.073574]
[1731950196126,0.09367462,241.06,240.85,12.1912]
[1731950196442,0.09367462,241.06,240.86,23.776884]
[1731950197431,0.09367462,241.06,240.87,20.0]
[1731950197744,158.4,241.12,240.91,20.0]
[1731950198039,0.59367462,241.12,240.91,20.0]
[1731950198247,0.09367462,241.12,240.91,20.0]
[1731950198739,0.09367462,241.12,240.89,45.2991]
[1731950198740,4.1474,241.11,240.9,20.0]
[1731950198938,24.027864,241.1,240.9,20.0]
[1731950199250,4.1469,241.15,240.96,33.1279]
[1731950199746,4.1469,241.15,240.97,20.0]
[1731950200052,4.1464,241.17,240.97,20.0]
[1731950200537,158.49367462,241.16,240.97,20.0]
[1731950200741,4.1467,241.15,240.97,20.0]
[1731950201047,0.5,241.13,240.96,33.1279]
[1731950201426,45.027864,241.12,240.94,12.0623]
[1731950201647,0.12549,241.07,240.94,12.0623]
[1731950201828,23.902374,241.05,240.94,12.0623]
[1731950202028,0.12549,241.04,240.94,12.0623]
[1731950202727,0.12549,241.02,240.94,12.0623]
[1731950203130,30.0,240.97,240.94,12.0623]
[1731950204455,30.0,240.97,240.95,20.0]
[1731950205329,23.776884,241.08,240.95,20.0]
[1731950205531,0.09367462,241.07,240.95,20.0]
[1731950206332,0.21916462,241.07,240.95,20.0]
[1731950206545,0.34465462,241.07,240.95,20.0]
[1731950207027,0.25098,241.07,240.95,20.0]
[1731950207341,1.0,241.15,240.97,20.0]
[1731950207342,0.12549,241.1,240.97,20.0]
[1731950207548,4.1472,241.13,240.97,20.0]
[1731950207938,4.1468,241.15,240.97,20.0]
[1731950208329,0.09367462,241.14,240.97,20.0]
[1731950208534,4.1468,241.15,240.97,20.0]
[1731950208734,0.09367462,241.14,240.97,20.0]
[1731950208929,30.8751,241.2,240.94,12.0623]
[1731950208930,4.1462,241.19,240.99,51.3663]
[1731950209156,4.1454,241.23,241.01,20.0]
[1731950209330,4.1454,241.23,241.0,24.12153862]
[1731950209331,0.09367462,241.22,241.03,20.0]
[1731950209531,4.1454,241.23,241.03,20.0]
[1731950209932,0.09367462,241.22,241.03,20.0]
[1731950210128,4.1454,241.23,241.03,20.0]
[1731950210752,24.027864,241.22,241.03,20.0]
[1731950211240,0.09367462,241.21,241.03,20.0]
[1731950211442,4.27139,241.2,241.03,20.0]
[1731950211648,0.12549,241.18,241.03,20.0]
[1731950212756,0.25098,241.16,241.02,10.8442]
[1731950213168,24.027864,241.14,241.02,10.8442]
[1731950213664,30.0,241.03,241.02,10.8442]
[1731950217743,30.0,241.03,240.99,31.3663]
[1731950217944,0.12549,241.02,240.96,11.2243]
[1731950218264,30.12549,241.02,240.96,11.2243]
[1731950218769,0.09367462,241.01,240.96,11.2243]
[1731950218971,23.99604862,241.01,240.93,28.9083]
[1731950219264,0.12549,240.98,240.93,28.9083]
[1731950219760,30.0,240.99,240.93,28.9083]
[1731950219761,0.12549,240.99,240.93,28.9083]
[1731950220768,23.776884,241.01,240.93,28.9083]
[1731950220987,24.027864,241.03,240.93,28.9083]
[1731950222664,30.0,240.97,240.93,28.9083]
[1731950223565,30.0,240.97,240.94,20.0]
[1731950223771,4.1474,241.12,240.94,20.0]
[1731950223970,158.4,241.19,240.96,11.2306]
[1731950224157,4.1461,241.19,240.97,20.0]
[1731950224358,0.09367462,241.18,240.99,20.0]
[1731950224749,4.1461,241.19,240.99,20.0]
[1731950225446,0.09367462,241.18,240.99,20.0]
[1731950226067,24.12153862,241.18,240.99,20.0]
[1731950226271,24.027864,241.16,240.99,20.0]
[1731950227971,24.027864,241.16,241.0,0.09367462]
[1731950228170,4.1456,241.22,241.02,0.21916462]
[1731950228377,162.93506049,241.26,241.04,0.09367462]
[1731950228569,4.1453,241.24,241.06,20.0]
[1731950230177,0.09367462,241.23,241.06,20.0]
[1731950230378,0.25098,241.22,241.06,20.0]
[1731950230581,24.027864,241.2,241.05,11.1071]
[1731950230750,24.027864,241.2,241.06,20.0]
[1731950231769,24.027864,241.18,241.06,20.0]
[1731950231967,0.12549,241.2,241.06,20.0]
[1731950232162,0.25098,241.2,241.06,20.0]
[1731950232474,2.40558611,241.29,241.07,24.12153862]
[1731950232686,0.5,241.29,241.09,20.0]
[1731950232857,0.09367462,241.28,241.09,20.0]
[1731950233660,0.12549,241.26,241.09,20.0]
[1731950233870,0.25098,241.26,241.09,20.0]
[1731950234071,0.25098,241.26,241.08,27.8438]
[1731950234261,0.25098,241.24,241.08,27.8438]
[1731950234579,24.027864,241.24,241.08,27.8438]
[1731950235786,24.027864,241.22,241.08,27.8438]
[1731950236862,4.39658,241.22,241.08,27.8438]
[1731950237171,23.776884,241.21,241.08,27.8438]
[1731950238386,5.31820984,241.32,241.1,0.25098]
[1731950238565,162.5435,241.34,241.13,0.09367462]
[1731950238768,4.1435,241.34,241.13,0.09367462]
[1731950239061,0.09367462,241.33,241.13,0.09367462]
[1731950239268,4.1435,241.34,241.13,0.09367462]
[1731950239477,0.09367462,241.33,241.13,0.09367462]
[1731950239792,0.25098,241.31,241.12,53.329264]
[1731950239960,24.027864,241.31,241.12,53.329264]
[1731950240356,24.027864,241.31,241.12,29.3014]
[1731950241460,4.1438,241.32,241.12,29.3014]
[1731950241461,24.027864,241.29,241.12,29.3014]
[1731950242574,24.027864,241.31,241.13,0.25098]
[1731950243263,0.09367462,241.3,241.13,0.25098]
[1731950243869,4.23787462,241.3,241.12,29.3014]
[1731950244060,23.776884,241.29,241.13,37.06827462]
[1731950244385,4.1426,241.39,241.15,20.0]
[1731950244692,0.09367462,241.38,241.15,20.0]
[1731950245567,23.902374,241.36,241.15,20.0]
[1731950245881,0.12549,241.35,241.15,20.0]
[1731950246487,24.027864,241.33,241.15,20.0]
[1731950247891,4.1438,241.32,241.15,20.0]
[1731950248087,23.902374,241.31,241.15,20.0]
[1731950249070,0.12549,241.28,241.15,20.0]
[1731950249792,23.902374,241.29,241.15,20.0]
[1731950251694,0.21916462,241.28,241.14,9.2059]
[1731950251892,0.25098,241.27,241.14,9.2059]
[1731950252969,23.776884,241.3,241.15,20.0]
[1731950253180,4.1437,241.33,241.15,20.0]
[1731950253369,4.1426,241.39,241.18,20.0]
[1731950253578,162.5426,241.39,241.18,20.0]
[1731950254475,4.143,241.37,241.18,20.0]
[1731950255095,0.09367462,241.36,241.18,20.0]
[1731950255594,4.1428,241.39,241.2,20.0]
[1731950255794,0.09367462,241.38,241.2,20.0]
[1731950256796,24.027864,241.36,241.2,20.0]
[1731950257288,4.143,241.37,241.21,9.052]
[1731950257487,0.09367462,241.38,241.21,9.052]
[1731950258490,4.26849,241.37,241.21,9.052]
[1731950258669,23.902374,241.36,241.21,9.052]
[1731950258873,0.12549,241.35,241.21,9.052]
[1731950259197,4.143,241.37,241.21,9.052]
[1731950259373,0.09367462,241.36,241.21,9.052]
[1731950259793,0.09367462,241.39,241.21,9.052]
[1731950260593,0.12549,241.38,241.21,9.052]
[1731950260899,24.027864,241.36,241.21,9.052]
[1731950261800,4.1428,241.39,241.24,20.0]
[1731950262294,2.43880762,241.43,241.25,9.166]
[1731950262609,4.23607462,241.41,241.25,9.166]
[1731950263692,23.902374,241.4,241.25,9.166]
[1731950263898,23.902374,241.4,241.19,0.5]
[1731950263899,0.09367462,241.41,241.27,20.0]
[1731950264198,0.09367462,241.41,241.32,21.7022]
[1731950265874,0.09367462,241.41,241.33,20.0]
[1731950266100,0.09367462,241.41,241.35,20.0]
[1731950266285,4.1403,241.53,241.37,20.0]
[1731950266688,2.43049913,241.58,241.39,0.21916462]
[1731950266894,6.54798119,241.59,241.38,30.6256]
[1731950268087,4.1392,241.59,241.39,20.0]
[1731950268404,4.1392,241.59,241.4,0.21916462]
[1731950268702,4.1392,241.59,241.39,20.0]
[1731950268891,0.09367462,241.58,241.39,20.0]
[1731950269082,0.09367462,241.56,241.39,20.0]
[1731950269579,24.62153862,241.56,241.38,30.6256]
[1731950270380,24.12153862,241.54,241.38,30.6256]
[1731950271276,24.12153862,241.52,241.38,30.6256]
[1731950272386,4.1406,241.51,241.38,30.6256]
[1731950272595,23.776884,241.5,241.38,30.6256]
[1731950273506,0.34465462,241.49,241.38,30.6256]
[1731950274384,27.917784,241.5,241.38,30.6256]
[1731950276036,0.34465462,241.49,241.38,30.6256]
[1731950276215,23.776884,241.47,241.38,30.6256]
[1731950277007,30.0,241.41,241.38,30.6256]
[1731950279481,30.0,241.41,241.32,28.9304]
[1731950279692,34.1423,241.41,241.32,28.9304]
[1731950280206,4.1423,241.41,241.32,28.9304]
[1731950280392,23.776884,241.39,241.32,28.9304]
[1731950281286,30.0,241.38,241.32,28.9304]
[1731950281492,27.919884,241.37,241.32,28.9304]
[1731950281809,30.0,241.38,241.32,28.9304]
[1731950282299,23.776884,241.37,241.24,29.3052]
[1731950282508,30.0,241.36,241.24,29.3052]
[1731950284017,34.1432,241.36,241.24,29.3052]
[1731950284714,4.1432,241.36,241.24,29.3052]
[1731950285104,23.776884,241.37,241.24,29.3052]
[1731950285787,27.919884,241.37,241.24,29.3052]
[1731950286596,4.1427,241.39,241.24,29.3052]
[1731950287111,23.776884,241.38,241.24,29.3052]
[1731950287493,27.919784,241.38,241.24,29.3052]
[1731950287694,30.0,241.35,241.24,29.3052]
[1731950290000,4.1428,241.39,241.24,29.3052]
[1731950291001,0.09367462,241.41,241.24,29.3052]
[1731950291516,24.027864,241.42,241.2,2.34421058]
[1731950291517,158.4,241.46,241.28,0.09367462]
[1731950291815,4.1409,241.49,241.3,0.09367462]
[1731950292311,4.1409,241.49,241.32,20.09367462]
[1731950293398,0.09367462,241.51,241.32,20.09367462]
[1731950293920,0.09367462,241.51,241.32,20.0]
[1731950295121,24.12153862,241.49,241.32,20.0]
[1731950295722,24.12153862,241.49,241.31,28.654]
[1731950296719,182.52153862,241.49,241.31,28.654]
[1731950297020,24.12153862,241.47,241.31,28.654]
[1731950297801,162.5409,241.49,241.32,20.09367462]
[1731950298318,4.04650741,241.56,241.34,43.87055862]
[1731950298554,158.4,241.58,241.37,20.0]
[1731950298824,10.3483,241.59,241.38,0.34465462]
[1731950299499,0.09367462,241.58,241.37,20.0]
[1731950299901,24.12153862,241.56,241.37,20.0]
[1731950301006,24.027864,241.54,241.37,20.0]
[1731950302124,23.902374,241.54,241.37,20.0]
[1731950302346,28.042474,241.54,241.37,20.0]
[1731950303236,27.916984,241.54,241.37,20.0]
[1731950305529,24.027864,241.58,241.38,30.1697]
[1731950305834,0.09367462,241.57,241.38,30.1697]
[1731950307026,23.776884,241.55,241.38,30.1697]
[1731950308136,23.776884,241.56,241.38,30.1697]
[1731950309215,4.1399,241.55,241.38,30.1697]
[1731950310120,4.1399,241.55,241.39,20.0]
[1731950313143,23.776884,241.54,241.38,30.1697]
[1731950313335,4.1402,241.53,241.38,30.1697]
[1731950314234,24.027864,241.58,241.38,30.1697]
[1731950314544,24.027864,241.56,241.38,30.1697]
[1731950315335,4.1399,241.55,241.38,30.1697]
[1731950316114,4.139,241.6,241.41,20.12549]
[1731950316416,4.139,241.6,241.42,8.3134]
[1731950316616,4.139,241.6,241.43,20.0]
[1731950317223,23.776884,241.61,241.43,20.0]
[1731950318222,23.776884,241.62,241.43,20.0]
[1731950318528,27.915584,241.62,241.43,20.0]
[1731950320922,27.915584,241.62,241.44,21.9479]
[1731950321921,0.09367462,241.63,241.44,21.9479]
[1731950321922,23.776884,241.59,241.44,21.9479]
[1731950323538,4.1394,241.58,241.44,21.9479]
[1731950332254,4.139,241.6,241.44,21.9479]
[1731950332625,0.09367462,241.63,241.49,41.48527462]
[1731950332827,0.09367462,241.63,241.52,20.0]
[1731950333528,0.09367462,241.63,241.53,22.4678]
[1731950339527,0.09367462,241.63,241.55,22.0236]
[1731950339850,4.1366,241.75,241.59,8.5329]
[1731950340729,4.1356,241.8,241.59,8.5329]
[1731950340930,24.027864,241.79,241.59,8.5329]
[1731950341347,24.527864,241.79,241.59,8.5329]
[1731950341650,24.527864,241.74,241.59,8.5329]
[1731950341860,24.62153862,241.72,241.58,22.0236]
[1731950342148,0.34465462,241.7,241.58,20.7623]
[1731950342833,23.902374,241.68,241.58,20.7623]
[1731950343841,4.1378,241.67,241.58,20.7623]
[1731950344841,0.21916462,241.65,241.53,8.4573]
[1731950345044,30.0,241.59,241.53,8.4573]
[1731950345451,4.1369,241.73,241.55,0.09367462]
[1731950345759,4.1355,241.81,241.62,0.09367462]
[1731950345936,4.1355,241.81,241.61,8.6247]
[1731950346957,0.09367462,241.78,241.61,8.6247]
[1731950347468,0.09367462,241.76,241.61,8.6247]
[1731950347751,0.12549,241.73,241.61,8.6247]
[1731950347962,23.902374,241.74,241.61,8.6247]
[1731950348534,0.25098,241.73,241.61,8.6247]
[1731950348938,4.137,241.72,241.61,8.6247]
[1731950349563,23.776884,241.71,241.61,8.6247]
[1731950351345,0.12549,241.68,241.61,8.6247]
[1731950351538,0.12549,241.68,241.55,8.9364]
[1731950352163,0.25098,241.68,241.55,8.9364]
[1731950352367,0.12549,241.68,241.55,8.9364]
[1731950352736,23.776884,241.69,241.55,8.9364]
[1731950353751,27.914484,241.69,241.55,8.9364]
[1731950355077,23.776884,241.7,241.55,8.9364]
[1731950356162,4.1372,241.71,241.56,20.0]
[1731950356566,24.027864,241.76,241.56,20.0]
[1731950356770,28.164164,241.76,241.56,20.0]
[1731950357060,4.1357,241.8,241.61,0.09367462]
[1731950357642,4.1357,241.8,241.62,30.8251]
[1731950358049,4.1349,241.84,241.62,30.8251]
[1731950358256,4.1349,241.84,241.63,30.8251]
[1731950358844,158.49367462,241.83,241.63,30.8251]
[1731950359051,0.09367462,241.77,241.63,30.8251]
[1731950359477,0.09367462,241.79,241.63,30.8251]
[1731950359771,0.09367462,241.73,241.58,9.0231]
[1731950359945,0.12549,241.7,241.58,9.0231]
[1731950360259,0.25098,241.68,241.58,9.0231]
[1731950360466,0.09367462,241.67,241.58,9.0231]
[1731950361042,158.49367462,241.67,241.58,9.0231]
[1731950361244,0.09367462,241.65,241.58,9.0231]
[1731950361443,0.09367462,241.63,241.52,8.7781]
[1731950361662,24.12153862,241.63,241.52,8.7781]
[1731950362242,24.027864,241.61,241.52,8.7781]
[1731950362755,23.902374,241.61,241.52,8.7781]
[1731950362949,4.1387,241.62,241.52,8.7781]
[1731950363559,158.4,241.64,241.53,0.09367462]
[1731950363770,4.1363,241.76,241.55,8.6116]
[1731950363953,0.09367462,241.75,241.55,8.6116]
[1731950364448,0.09367462,241.73,241.55,8.6116]
[1731950364940,0.09367462,241.71,241.55,8.6116]
[1731950365141,0.12549,241.7,241.55,8.6116]
[1731950365367,0.25098,241.7,241.55,8.6116]
[1731950365669,23.902374,241.68,241.55,8.6116]
[1731950366051,0.12549,241.66,241.55,8.6116]
[1731950366279,0.12549,241.65,241.55,8.6116]
[1731950366480,0.25098,241.65,241.55,8.6116]
[1731950367447,4.1383,241.64,241.55,8.6116]
[1731950367964,23.902374,241.63,241.55,8.6116]
[1731950368847,4.1387,241.62,241.55,8.6116]
[1731950370481,23.776884,241.61,241.55,8.6116]
[1731950370961,27.915784,241.61,241.55,8.6116]
[1731950373171,28.040974,241.63,241.55,8.6116]
[1731950375858,2.35236647,241.7,241.55,8.6116]
[1731950376061,4.136,241.78,241.56,24.12153862]
[1731950376352,4.136,241.78,241.55,8.6116]
[1731950376752,158.4,241.77,241.55,8.6116]
[1731950376954,163.11375372,241.77,241.55,8.6116]
[1731950377152,0.09367462,241.76,241.55,8.6116]
[1731950377773,0.09367462,241.74,241.55,8.6116]
[1731950377967,0.12549,241.71,241.55,8.6116]
[1731950378277,24.027864,241.67,241.55,8.6116]
[1731950378581,20.12549,241.64,241.55,8.6116]
[1731950378756,0.12549,241.62,241.55,8.6116]
[1731950379078,23.902374,241.61,241.55,8.6116]
[1731950379561,20.0,241.68,241.55,8.6116]
[1731950379873,20.25098,241.66,241.55,8.6116]
[1731950380078,20.12549,241.64,241.55,8.6116]
[1731950380478,23.776884,241.63,241.55,8.6116]
[1731950380975,23.902374,241.61,241.55,8.6116]
[1731950381781,30.0,241.6,241.55,8.6116]
[1731950382756,2.37982261,241.71,241.57,8.8911]
[1731950382957,4.1367,241.74,241.57,8.8911]
[1731950383591,0.09367462,241.73,241.57,8.8911]
[1731950384379,24.12153862,241.73,241.57,8.8911]
[1731950384554,28.25863862,241.71,241.57,8.8911]
[1731950384860,0.12549,241.68,241.57,8.8911]
[1731950386577,4.26329,241.68,241.57,8.8911]
[1731950386761,0.12549,241.65,241.57,8.8911]
[1731950387858,0.12549,241.66,241.57,8.8911]
[1731950388061,23.776884,241.67,241.57,8.8911]
[1731950388470,0.25098,241.66,241.57,8.8911]
[1731950389793,8.8602,241.75,241.57,8.8911]
[1731950389794,20.0,241.72,241.57,8.8911]
[1731950390163,0.09367462,241.71,241.57,8.8911]
[1731950390497,4.1365,241.75,241.58,22.39377462]
[1731950390691,2.37932018,241.76,241.6,9.0436]
[1731950390890,158.4,241.83,241.6,9.0436]
[1731950390891,4.1354,241.82,241.6,9.0436]
[1731950391385,0.09367462,241.81,241.6,9.0436]
[1731950391763,0.09367462,241.79,241.6,9.0436]
[1731950391966,3.72927462,241.8,241.6,9.0436]
[1731950392161,158.4,241.79,241.6,9.0436]
[1731950392365,20.0,241.76,241.6,9.0436]
[1731950392586,44.027864,241.74,241.6,9.0436]
[1731950393587,4.1368,241.73,241.6,9.0436]
[1731950393888,24.027864,241.72,241.6,9.0436]
[1731950395474,28.164964,241.72,241.6,9.0436]
[1731950395872,30.58096734,241.72,241.6,9.0436]
[1731950396275,2.41600334,241.72,241.6,9.0436]
[1731950396485,4.1365,241.75,241.6,9.0436]
[1731950397187,3.6365,241.75,241.6,9.0436]
[1731950397490,0.09367462,241.74,241.6,9.0436]
[1731950397685,20.09367462,241.74,241.6,9.0436]
[1731950397885,94.027864,241.71,241.54,8.5152]
[1731950398069,24.12153862,241.65,241.51,21.685]
[1731950398271,23.87055862,241.59,241.48,8.5152]
[1731950398471,20.0,241.58,241.48,8.5152]
[1731950398698,20.0,241.62,241.48,8.5152]
[1731950399175,20.0,241.6,241.48,8.5152]
[1731950399588,24.1391,241.6,241.48,8.5152]
[1731950399893,4.1391,241.6,241.48,8.5152]
[1731950400775,20.0,241.58,241.48,8.5152]
[1731950401099,20.0,241.54,241.48,8.5152]
[1731950401295,158.4,241.59,241.48,8.5152]
[1731950401592,20.0,241.58,241.48,8.5152]
[1731950402092,24.23197462,241.64,241.48,8.5152]
[1731950402302,20.09367462,241.62,241.48,8.5152]
[1731950402477,20.0,241.6,241.48,8.5152]
[1731950402801,20.0,241.62,241.48,8.5152]
[1731950403196,4.1383,241.64,241.48,8.5152]
[1731950403411,2.33722811,241.68,241.49,21.3102]
[1731950403699,7.39009043,241.74,241.58,8.4311]
[1731950403992,2.39029671,241.75,241.58,8.4311]
[1731950404193,6.48570633,241.75,241.58,8.4311]
[1731950404410,0.09367462,241.74,241.58,8.4311]
[1731950404573,14.4772,241.76,241.58,8.4311]
[1731950404997,0.09367462,241.75,241.58,8.4311]
[1731950405582,23.902374,241.73,241.58,8.4311]
[1731950405783,20.0,241.72,241.58,8.4311]
[1731950406986,4.1371,241.71,241.58,8.4311]
[1731950408279,23.99604862,241.77,241.58,8.4311]
[1731950408475,20.0,241.74,241.58,8.4311]
[1731950409600,4.1368,241.73,241.58,8.4311]
[1731950411879,4.136,241.78,241.61,0.09367462]
[1731950412086,12.97141267,241.82,241.63,0.09367462]
[1731950412087,6.48570633,241.82,241.63,0.09367462]
[1731950412491,4.1353,241.82,241.64,23.0]
[1731950413179,4.1353,241.82,241.65,9.27167462]
[1731950413380,24.1353,241.82,241.65,9.27167462]
[1731950413589,4.1353,241.82,241.65,9.27167462]
[1731950413788,4.1353,241.82,241.65,9.178]
[1731950414806,0.09367462,241.84,241.65,9.178]
[1731950415007,20.0,241.82,241.65,9.178]
[1731950415389,4.1349,241.84,241.66,0.09367462]
[1731950416205,6.48570633,241.92,241.7,8.98367462]
[1731950416206,4.1341,241.89,241.7,8.98367462]
[1731950416810,4.1341,241.89,241.7,8.89]
[1731950417011,14.467,241.93,241.72,21.6826]
[1731950417688,16.83333297,241.93,241.72,21.6826]
[1731950418106,24.027864,241.92,241.73,8.89]
[1731950418915,20.09367462,241.89,241.73,8.89]
[1731950419107,20.0,241.87,241.73,8.89]
[1731950419512,24.027864,241.86,241.73,8.89]
[1731950419683,0.09367462,241.83,241.73,8.89]
[1731950419889,20.0,241.81,241.73,8.89]
[1731950420193,4.1359,241.78,241.73,8.89]
[1731950420388,0.25098,241.77,241.66,21.3172]
[1731950420595,0.25098,241.75,241.66,30.0694]
[1731950420912,0.25098,241.71,241.66,8.7522]
[1731950421085,0.09367462,241.7,241.61,21.3172]
[1731950421290,24.027864,241.67,241.6,8.7522]
[1731950421490,0.25098,241.63,241.54,8.7522]
[1731950421708,24.027864,241.61,241.47,8.7628]
[1731950422018,0.5,241.68,241.47,8.7628]
[1731950422019,20.0,241.58,241.47,8.7628]
[1731950422185,4.1397,241.56,241.47,8.7628]
[1731950422390,24.1394,241.58,241.47,8.7628]
[1731950422895,0.25098,241.57,241.47,8.7628]
[1731950423104,24.027864,241.57,241.47,8.7628]
[1731950423410,24.027864,241.57,241.38,21.1694]
[1731950423411,20.0,241.54,241.39,8.7023]
[1731950424310,4.1402,241.53,241.39,8.7023]
[1731950424610,3.6402,241.53,241.39,8.7023]
[1731950424792,158.4,241.59,241.39,8.7023]
[1731950425117,4.139,241.6,241.4,0.09367462]
[1731950425821,24.027864,241.59,241.39,8.7023]
[1731950425989,0.09367462,241.58,241.39,8.7023]
[1731950426188,4.1395,241.57,241.39,8.7023]
[1731950426390,0.25098,241.56,241.39,8.7023]
[1731950427510,24.027864,241.54,241.39,8.7023]
[1731950427722,20.0,241.53,241.39,8.7023]
[1731950428493,158.4,241.58,241.39,8.7023]
[1731950428702,4.1387,241.62,241.43,24.12153862]
[1731950429010,4.1387,241.62,241.4,5.7900914]
[1731950429214,4.1387,241.62,241.41,0.09367462]
[1731950429825,4.1375,241.69,241.45,0.34465462]
[1731950430119,4.1375,241.69,241.47,24.12153862]
[1731950430414,4.1375,241.69,241.46,24.027864]
[1731950430804,4.1375,241.69,241.49,0.34465462]
[1731950431105,10.3414,241.75,241.49,0.34465462]
[1731950431411,20.0,241.74,241.49,0.34465462]
[1731950431721,0.09367462,241.71,241.44,8.601]
[1731950431921,0.09367462,241.69,241.44,8.601]
[1731950432215,20.12549,241.68,241.45,24.62153862]
[1731950432392,20.12549,241.68,241.44,9.101]
[1731950432393,0.09367462,241.63,241.44,8.601]
[1731950432597,0.25098,241.61,241.44,8.601]
[1731950432993,4.139,241.6,241.44,8.601]
[1731950433417,0.25098,241.65,241.45,0.09367462]
[1731950434193,4.138,241.66,241.47,0.09367462]
[1731950434423,24.027864,241.71,241.47,0.09367462]